bitfinex/quotes_ETHUSD_20260203
["timestamp","ask_amount","ask_price","bid_price","bid_amount"]
[1770108595145,1.07411774,2327.5,2326.8,12.32702884]
[1770108600523,1.07411774,2327.5,2326.8,12.32802884]
[1770108600723,0.0011,2327.3,2326.8,12.32802884]
[1770108600915,0.0011,2327.3,2326.9,13.8456084]
[1770108602338,0.0011,2327.3,2326.8,0.001]
[1770108602544,0.0011,2327.3,2326.8,12.32802884]
[1770108602762,7.77027223,2327.2,2326.8,0.001]
[1770108602923,0.0011,2327.3,2326.8,0.001]
[1770108603843,0.0011,2327.3,2327.0,12.32702884]
[1770108604150,0.0011,2327.5,2327.2,12.32702884]
[1770108604552,0.0011,2327.5,2326.8,0.001]
[1770108604724,7.77027223,2327.1,2326.6,0.001]
[1770108605529,0.901,2327.2,2326.6,12.32802884]
[1770108606357,7.77137223,2327.5,2326.6,13.40255589]
[1770108606358,1.07423524,2327.3,2326.6,13.40255589]
[1770108606729,12.96900787,2327.5,2326.6,13.40255589]
[1770108606730,1.97624106,2327.5,2326.6,13.40255589]
[1770108609553,1.97622559,2327.5,2326.6,13.40255589]
[1770108609762,1.97622559,2327.5,2326.8,12.32702884]
[1770108610119,9.74649782,2327.5,2326.7,1.77018488]
[1770108610440,9.74649782,2327.5,2326.6,13.40254676]
[1770108610873,0.9021,2327.5,2326.6,13.40254676]
[1770108611037,1.97622358,2327.5,2326.6,13.40254676]
[1770108611222,1.97622358,2327.5,2326.8,12.32702884]
[1770108611424,1.97622358,2327.5,2326.8,13.40146312]
[1770108613253,1.97622358,2327.5,2326.8,13.40246312]
[1770108613454,0.0011,2327.3,2326.8,13.40246312]
[1770108615546,1.96132358,2327.5,2326.8,13.40246312]
[1770108615749,1.96132358,2327.5,2326.8,14.27518226]
[1770108616062,7.77027223,2327.1,2326.6,0.001]
[1770108616551,12.71609541,2327.3,2326.6,0.001]
[1770108618934,13.68794773,2327.2,2326.6,0.001]
[1770108620552,13.68794773,2327.2,2326.5,0.001]
[1770108620757,12.7909267,2327.0,2326.0,11.93793381]
[1770108621052,1.97539082,2326.9,2326.0,11.93793381]
[1770108622563,1.97539082,2326.9,2326.0,13.01272119]
[1770108622724,1.97539082,2326.9,2326.0,11.93793381]
[1770108622926,14.66391752,2326.9,2326.0,11.93793381]
[1770108623173,1.89614808,2326.8,2326.0,11.93793381]
[1770108623557,1.89614808,2326.8,2325.4,4.33900403]
[1770108623558,12.6885267,2326.4,2325.4,11.93893381]
[1770108623767,0.901,2326.3,2325.4,11.93893381]
[1770108624935,1.07471412,2326.2,2325.4,11.93893381]
[1770108625130,13.76324082,2326.2,2325.4,0.001]
[1770108625332,1.89630973,2326.1,2325.4,0.001]
[1770108625670,1.89630973,2326.1,2325.6,0.001]
[1770108625864,1.07471412,2326.2,2325.4,0.001]
[1770108625865,13.76324082,2326.2,2325.4,0.001]
[1770108626363,1.07471412,2326.2,2325.4,11.93893381]
[1770108627866,1.07471412,2326.2,2325.4,0.001]
[1770108628363,13.76324082,2326.2,2325.4,0.001]
[1770108628567,1.89630973,2326.1,2325.4,0.001]
[1770108628986,1.07480653,2326.0,2325.4,0.001]
[1770108630043,1.07480653,2326.0,2325.4,11.93893381]
[1770108631044,4.29922613,2326.1,2325.4,11.93893381]
[1770108631372,16.98775283,2326.1,2325.4,0.001]
[1770108631540,0.85984523,2326.0,2325.4,0.001]
[1770108631737,2.07811412,2326.3,2325.5,11.93793381]
[1770108631738,1.07468702,2326.3,2325.5,11.93793381]
[1770108632958,0.901,2326.6,2325.5,11.93793381]
[1770108632959,1.07457554,2326.5,2325.5,11.93793381]
[1770108633285,1.07457554,2326.5,2325.5,13.0129665]
[1770108633443,2.14202041,2326.5,2325.7,11.93793381]
[1770108638461,7.77868139,2326.3,2325.7,11.93793381]
[1770108638647,7.77868139,2326.3,2325.9,0.001]
[1770108638853,7.77868139,2326.3,2325.7,11.93793381]
[1770108639059,7.77868139,2326.1,2325.6,0.001]
[1770108640886,8.85346542,2326.1,2325.6,0.001]
[1770108641475,1.07474252,2326.2,2325.6,11.93893381]
[1770108641680,1.07474252,2326.2,2325.6,13.13292719]
[1770108646460,1.07474252,2326.2,2325.6,0.001]
[1770108647281,2.06676613,2326.3,2325.6,11.93893381]
[1770108647485,1.07469595,2326.3,2325.6,11.93893381]
[1770108647882,4.29855828,2326.4,2325.6,11.93893381]
[1770108648068,4.29855828,2326.4,2325.6,13.0139172]
[1770108650480,4.29855828,2326.4,2325.6,11.93893381]
[1770108650697,0.64406249,2326.3,2325.6,11.93893381]
[1770108651566,0.64406249,2326.3,2325.8,0.001]
[1770108651768,0.64516249,2326.3,2325.6,0.001]
[1770108651975,1.70399345,2326.2,2325.6,0.001]
[1770108652288,1.07476032,2326.1,2325.6,0.001]
[1770108655791,1.07476032,2326.1,2325.6,12.43053646]
[1770108656088,1.97576032,2326.1,2325.6,12.43053646]
[1770108656590,0.901,2326.1,2325.6,12.43053646]
[1770108656888,13.68917146,2326.1,2325.6,0.001]
[1770108657086,1.59295774,2326.1,2325.6,0.001]
[1770108657267,1.07480653,2326.0,2325.6,0.001]
[1770108658067,1.07480653,2326.0,2325.5,0.001]
[1770108658380,0.69669904,2325.9,2325.5,0.001]
[1770108660592,1.07489895,2325.8,2325.5,0.001]
[1770108660889,1.07483894,2326.0,2325.5,12.43053646]
[1770108661580,2.66774345,2326.1,2325.5,12.43053646]
[1770108662379,0.6966625,2326.0,2325.5,0.001]
[1770108662693,0.6966625,2326.0,2324.8,1.1130433]
[1770108662694,13.17106646,2325.9,2324.8,0.03772824]
[1770108662903,13.17106646,2325.9,2324.7,0.001]
[1770108662904,12.09621372,2325.6,2324.7,0.001]
[1770108663066,12.99721372,2325.5,2324.7,0.001]
[1770108663590,12.99721372,2325.5,2324.5,12.42953646]
[1770108663805,0.1024,2325.1,2324.2,12.42953646]
[1770108664006,0.901,2325.0,2324.2,12.42953646]
[1770108664515,12.99721372,2325.0,2324.2,12.42953646]
[1770108664669,1.07531506,2324.9,2324.2,12.42953646]
[1770108664870,2.91269396,2324.9,2324.0,13.50526533]
[1770108665370,2.91269396,2324.9,2323.9,4.30310064]
[1770108665371,2.91269396,2324.9,2324.1,13.50521821]
[1770108665575,1.07531506,2324.9,2324.3,12.42953646]
[1770108667785,1.07531506,2324.9,2324.5,0.001]
[1770108668011,0.901,2325.0,2324.6,12.42953646]
[1770108668506,1.97627342,2325.0,2324.5,0.001]
[1770108668680,0.62772779,2324.9,2324.5,0.001]
[1770108669078,1.70304596,2324.9,2324.5,0.001]
[1770108669907,1.70304596,2324.9,2324.3,0.001]
[1770108670926,0.62772779,2324.9,2324.3,12.43053646]
[1770108671095,0.901,2325.0,2324.3,13.50610715]
[1770108672810,0.03882825,2326.0,2324.3,13.50610715]
[1770108672811,1.07503762,2325.5,2324.3,13.50610715]
[1770108673263,13.17125134,2325.5,2324.3,12.43053646]
[1770108673406,12.09621372,2325.3,2324.3,12.43053646]
[1770108674492,12.09621372,2325.3,2324.3,0.001]
[1770108675313,13.17139004,2325.2,2324.3,0.001]
[1770108680620,7.78843262,2324.8,2324.3,0.001]
[1770108680995,7.78843262,2324.8,2324.5,0.001]
[1770108681194,7.78843262,2324.8,2324.3,0.001]
[1770108681810,8.86382275,2324.8,2324.3,0.001]
[1770108685619,8.86382275,2324.8,2324.3,12.66604566]
[1770108687530,5.20326275,2324.9,2324.3,13.3347412]
[1770108687531,0.902,2324.9,2324.3,13.3347412]
[1770108687830,0.0011,2325.0,2324.3,14.41029937]
[1770108688505,7.78953262,2325.0,2324.3,14.41029937]
[1770108688733,7.78843262,2324.7,2324.3,0.001]
[1770108689804,0.0011,2325.0,2324.3,12.66604566]
[1770108691535,7.78843262,2324.9,2324.3,12.66604566]
[1770108691731,7.78843262,2324.9,2324.3,13.74162628]
[1770108691933,0.0011,2325.0,2324.3,13.74162628]
[1770108692232,0.0011,2325.0,2324.3,15.11578891]
[1770108695233,0.0011,2325.0,2324.5,0.001]
[1770108695541,0.0011,2324.8,2324.5,12.66604566]
[1770108696346,0.0011,2325.0,2324.6,12.66504566]
[1770108696839,0.9031,2325.2,2324.7,12.66504566]
[1770108697005,0.9031,2325.2,2324.9,12.66504566]
[1770108701636,7.78705707,2325.8,2324.9,13.7403292]
[1770108701834,8.68905707,2325.8,2324.9,13.7403292]
[1770108703036,0.902,2325.8,2324.9,13.7403292]
[1770108703221,0.902,2325.8,2325.1,12.66504566]
[1770108703421,1.07491484,2325.8,2325.1,12.66504566]
[1770108703637,1.07488756,2325.9,2325.1,12.66504566]
[1770108705742,7.78705707,2325.2,2324.4,13.74058085]
[1770108705942,7.78705707,2325.0,2324.4,13.74058085]
[1770108706446,8.68905707,2325.2,2324.4,13.74059096]
[1770108706616,8.68905707,2325.2,2324.5,12.66604566]
[1770108706813,8.68905707,2325.2,2324.5,13.74151066]
[1770108707044,0.902,2325.2,2324.6,14.03919673]
[1770108707543,1.07522257,2325.1,2324.6,1.37415107]
[1770108707843,1.07522257,2325.1,2324.5,12.66604566]
[1770108708041,0.902,2325.2,2324.6,13.74049878]
[1770108708448,0.902,2325.2,2324.7,12.66604566]
[1770108708748,0.0011,2325.0,2324.7,12.66604566]
[1770108709446,0.9031,2325.2,2324.7,14.04029709]
[1770108709661,4.29957211,2325.9,2324.8,12.66504566]
[1770108709662,1.07489895,2325.9,2324.8,12.66504566]
[1770108709959,12.0867147,2325.8,2324.8,12.66504566]
[1770108710118,14.70181595,2325.8,2325.0,12.66504566]
[1770108710531,6.91475888,2325.8,2325.0,12.66504566]
[1770108710738,4.29965763,2325.8,2325.0,12.66504566]
[1770108711550,4.29965763,2325.8,2324.9,1.51156728]
[1770108712860,12.92404716,2325.7,2324.7,0.001]
[1770108713020,12.92404716,2325.7,2324.5,0.001]
[1770108713021,12.92404716,2325.3,2324.5,0.001]
[1770108713221,14.92708981,2325.2,2324.1,11.74040983]
[1770108713461,13.82604716,2325.2,2324.1,11.74040983]
[1770108714142,0.902,2325.2,2324.4,11.74040983]
[1770108714335,0.902,2325.2,2324.4,13.02200892]
[1770108714925,1.07522257,2325.1,2324.4,13.02200892]
[1770108715339,1.07522257,2325.1,2324.4,14.09755425]
[1770108715553,1.07522257,2325.1,2324.4,13.02200892]
[1770108718549,1.07522257,2325.1,2324.4,14.09755283]
[1770108718742,1.07522257,2325.1,2324.5,13.15016511]
[1770108719141,4.30031932,2325.5,2324.5,14.22565415]
[1770108719333,4.30031932,2325.5,2324.5,13.15016511]
[1770108720734,4.29998956,2325.6,2324.5,14.22565684]
[1770108721252,4.29998956,2325.6,2324.7,11.74040983]
[1770108721459,4.29998956,2325.6,2324.9,11.74040983]
[1770108721639,4.30108956,2325.6,2324.9,11.74040983]
[1770108722942,4.30108956,2325.6,2324.8,1.17414098]
[1770108722943,12.92404716,2325.5,2324.8,1.17414098]
[1770108723149,12.92404716,2325.5,2324.6,11.74140983]
[1770108723348,1.07508385,2325.4,2324.6,11.74140983]
[1770108725660,13.99913101,2325.4,2324.6,11.74140983]
[1770108726230,13.99913101,2325.4,2324.6,0.001]
[1770108726439,12.92404716,2325.2,2324.6,0.001]
[1770108726654,1.30264472,2325.1,2324.6,0.001]
[1770108727045,13.99913101,2325.4,2324.6,0.001]
[1770108728447,13.99913101,2325.4,2324.6,11.74140983]
[1770108731154,13.99913101,2325.4,2324.4,11.74140983]
[1770108731551,13.99913101,2325.4,2324.4,0.001]
[1770108731764,1.07508385,2325.4,2324.4,12.8169459]
[1770108731974,4.30033542,2325.5,2324.6,11.74040983]
[1770108732279,17.22513672,2325.6,2324.6,11.74040983]
[1770108732453,4.30108956,2325.6,2324.6,11.74040983]
[1770108733480,1.0760914,2325.6,2324.6,11.74040983]
[1770108734155,1.0760914,2325.6,2324.8,11.74040983]
[1770108734356,1.0760914,2325.6,2325.0,11.74040983]
[1770108734556,0.0011,2325.6,2325.0,11.74040983]
[1770108734975,1.07600771,2325.8,2325.0,11.74040983]
[1770108735672,0.0011,2325.4,2325.0,11.74040983]
[1770108735878,0.0011,2325.4,2325.2,11.74040983]
[1770108736090,0.0011,2325.4,2324.7,1.07640757]
[1770108736091,0.0011,2325.4,2325.0,11.74040983]
[1770108738972,0.0011,2325.4,2324.8,11.74040983]
[1770108741184,12.11542146,2325.4,2324.5,0.001]
[1770108742086,0.0011,2325.4,2324.5,13.17921203]
[1770108742286,0.0011,2325.4,2324.8,12.10272769]
[1770108742594,0.0011,2325.4,2324.8,13.17808094]
[1770108743268,1.0760914,2325.6,2324.8,1.07535325]
[1770108743590,1.0760914,2325.6,2324.9,12.10272769]
[1770108745182,0.0011,2325.6,2324.9,12.10272769]
[1770108745390,0.0011,2325.6,2325.0,13.42053578]
[1770108746059,0.0011,2325.6,2325.0,1.31780809]
[1770108746462,0.0011,2325.6,2325.0,13.42053578]
[1770108747984,0.0011,2325.6,2325.1,12.10272769]
[1770108749264,0.0011,2325.6,2325.0,1.31780809]
[1770108749490,0.0011,2325.6,2324.9,12.10372769]
[1770108749664,0.0011,2325.4,2324.9,12.10372769]
[1770108750063,12.11432146,2325.2,2324.6,0.001]
[1770108750262,13.33599361,2325.1,2324.6,0.001]
[1770108750487,12.11432146,2325.1,2324.5,0.001]
[1770108753002,1.07526881,2325.0,2324.5,0.001]
[1770108755606,13.18959027,2325.0,2324.5,0.001]
[1770108755904,0.1024,2324.8,2323.9,12.10272769]
[1770108756496,12.21672146,2324.8,2323.9,12.10272769]
[1770108757172,12.21672146,2324.8,2323.8,1.07581829]
[1770108757173,13.11872146,2324.8,2323.8,1.07581829]
[1770108757376,13.11872146,2324.8,2323.7,13.17857499]
[1770108757377,12.11432146,2324.6,2323.7,13.17857499]
[1770108757700,2.56218637,2324.7,2323.7,13.17857499]
[1770108757998,14.67650783,2324.7,2323.7,12.10272769]
[1770108758490,14.67650783,2324.7,2323.7,13.17858896]
[1770108758675,1.99825381,2324.6,2323.7,13.17858896]
[1770108759077,1.99825381,2324.6,2323.8,13.17854448]
[1770108759397,1.0755001,2324.5,2323.8,13.17854448]
[1770108760192,3.07373954,2324.6,2323.8,13.17854448]
[1770108760399,2.0976633,2324.5,2323.8,13.17854448]
[1770108760897,1.07548573,2324.6,2323.8,13.17854448]
[1770108762007,1.07548573,2324.6,2323.8,12.10272769]
[1770108762214,1.07548573,2324.6,2323.8,13.17854428]
[1770108763201,1.07548573,2324.6,2324.0,12.10372769]
[1770108763800,0.0011,2324.7,2324.0,13.17944585]
[1770108764102,0.62908197,2324.7,2324.0,12.10372769]
[1770108765684,1.07545384,2324.6,2324.0,12.10372769]
[1770108767983,13.1897753,2324.6,2323.7,12.10272769]
[1770108768283,1.07545384,2324.6,2323.7,12.10272769]
[1770108768898,13.81883429,2324.7,2323.7,12.10272769]
[1770108769204,12.11432146,2324.5,2323.7,12.10272769]
[1770108770212,12.11432146,2324.3,2323.2,13.47953694]
[1770108770388,14.22887026,2324.2,2323.2,13.47953694]
[1770108770881,14.22887026,2324.2,2323.2,1.37680925]
[1770108771083,12.90988348,2323.7,2322.4,13.33272393]
[1770108771304,14.20087183,2323.6,2322.5,13.33266416]
[1770108771500,12.90988348,2323.6,2322.5,13.33266416]
[1770108771809,12.05936848,2323.5,2322.3,13.28899625]
[1770108771981,12.05936848,2323.5,2322.4,1.75952392]
[1770108772405,12.05936848,2323.3,2322.4,1.75952392]
[1770108772643,12.16176848,2323.2,2322.1,12.21248112]
[1770108772919,12.16176848,2323.2,2322.2,1.07652883]
[1770108773124,12.16176848,2323.2,2322.1,12.21248112]
[1770108773302,12.16176848,2323.2,2321.8,12.21248112]
[1770108774607,12.16176848,2323.0,2321.8,12.21248112]
[1770108774811,13.38316015,2322.9,2321.8,13.9721386]
[1770108775230,12.05936848,2322.7,2321.5,12.21248112]
[1770108775392,1.32379167,2322.9,2321.9,12.21248112]
[1770108776794,1.07628723,2322.8,2321.9,12.21248112]
[1770108777298,1.07628723,2322.8,2321.9,13.28917019]
[1770108777495,2.40004622,2322.9,2321.9,15.04878753]
[1770108777723,1.07625455,2322.9,2322.1,12.21248112]
[1770108779219,1.17854825,2323.1,2322.1,12.21248112]
[1770108780893,1.17854825,2323.1,2322.1,13.28909142]
[1770108781220,15.62018353,2323.3,2322.1,13.28909142]
[1770108781221,1.75423564,2323.0,2322.1,13.28909142]
[1770108781403,1.07596298,2323.5,2322.3,12.21248112]
[1770108783700,1.07596298,2323.5,2322.4,1.07647261]
[1770108783900,1.07596298,2323.5,2322.5,12.21248112]
[1770108784101,1.74391834,2323.4,2322.5,13.97196554]
[1770108784727,1.74391834,2323.4,2322.5,12.21248112]
[1770108786121,2.81997301,2323.4,2322.5,12.21248112]
[1770108786306,13.13542315,2323.4,2322.4,1.07644373]
[1770108786814,13.13542315,2323.4,2322.4,13.28892485]
[1770108787016,1.07605467,2323.4,2322.6,12.21248112]
[1770108789828,1.07599495,2323.5,2322.6,13.28881956]
[1770108790817,0.1024,2323.4,2322.6,12.16248112]
[1770108791020,0.64036938,2323.4,2322.6,12.16248112]
[1770108791220,0.64036938,2323.4,2322.7,0.001]
[1770108791523,0.0011,2323.3,2322.7,0.001]
[1770108791728,1.07715561,2323.3,2322.7,0.001]
[1770108792022,0.60217474,2323.2,2322.7,0.001]
[1770108792409,0.0011,2323.3,2322.7,12.21348112]
[1770108793732,0.0011,2323.3,2322.7,13.28979077]
[1770108804147,0.0011,2323.5,2322.8,12.96797622]
[1770108805432,1.07706371,2323.5,2322.8,12.96797622]
[1770108806021,0.0011,2323.5,2322.9,14.04421712]
[1770108806615,0.0011,2323.3,2322.9,12.96797622]
[1770108807239,0.0011,2323.3,2322.9,14.80312523]
[1770108808135,0.0011,2323.3,2322.9,15.87934759]
[1770108808518,0.0011,2323.5,2323.0,12.96797622]
[1770108810035,0.0011,2323.5,2323.0,14.04415494]
[1770108815917,4.30299152,2324.0,2323.1,12.96797622]
[1770108815918,1.07576585,2324.0,2323.1,12.96797622]
[1770108816224,1.07576585,2324.0,2323.3,12.96797622]
[1770108816629,4.30281916,2324.1,2323.3,14.04402217]
[1770108818324,17.10504732,2324.1,2323.3,14.04402217]
[1770108819349,17.10504732,2324.1,2323.3,12.96797622]
[1770108819551,12.80222816,2324.0,2323.3,12.96797622]
[1770108819753,14.62030141,2324.0,2323.3,12.96797622]
[1770108819948,1.81807325,2324.0,2323.3,12.96897622]
[1770108820153,0.0011,2323.8,2323.3,12.96897622]
[1770108820350,0.0011,2323.8,2323.3,14.04502865]
[1770108820536,0.0011,2323.8,2323.3,12.96897622]
[1770108820727,0.0011,2323.8,2323.4,1.40450448]
[1770108822727,0.0011,2323.8,2323.3,14.04502935]
[1770108822728,0.0011,2323.8,2323.3,0.001]
[1770108824154,12.80332816,2323.8,2323.3,0.001]
[1770108824457,12.80332816,2323.8,2323.0,1.07719427]
[1770108824646,12.80332816,2323.8,2323.0,14.04517049]
[1770108824837,1.28033282,2323.7,2323.0,14.04517049]
[1770108825427,1.28033282,2323.7,2323.0,12.96897622]
[1770108825647,14.08256098,2323.7,2323.0,0.001]
[1770108825847,15.15845416,2323.7,2323.0,0.001]
[1770108826051,15.15845416,2323.7,2323.0,12.96897622]
[1770108826252,1.94630274,2323.6,2323.0,12.96897622]
[1770108829271,3.02223741,2323.6,2323.0,12.96897622]
[1770108834447,3.02223741,2323.6,2323.2,0.001]
[1770108835247,12.95438356,2323.8,2323.2,0.001]
[1770108835446,14.03021101,2323.8,2323.2,0.001]
[1770108839371,12.05128356,2323.7,2323.2,0.001]
[1770108839569,12.05128356,2323.5,2323.0,0.001]
[1770108839743,1.984753,2323.4,2323.0,0.001]
[1770108840067,12.05128356,2323.5,2323.0,0.001]
[1770108841537,1.07600929,2323.4,2323.0,0.001]
[1770108841765,1.07600929,2323.4,2322.1,7.7962464]
[1770108841766,12.05128356,2323.1,2322.2,13.80481659]
[1770108841947,19.84752996,2322.9,2322.0,12.72827815]
[1770108842156,7.7962464,2322.7,2322.1,14.1770677]
[1770108842363,7.7962464,2322.9,2322.1,12.72827815]
[1770108843078,19.84752996,2322.5,2321.7,12.72827815]
[1770108843391,19.84752996,2322.5,2321.1,4.30828607]
[1770108843392,19.88635821,2321.8,2320.6,13.80558286]
[1770108843683,7.7962464,2321.4,2320.7,14.10883644]
[1770108845287,7.7962464,2321.0,2320.1,12.72827815]
[1770108845454,7.7962464,2321.0,2320.1,13.80581567]
[1770108845791,0.902,2321.0,2320.1,13.80581567]
[1770108846077,8.6982464,2321.0,2320.1,13.80581567]
[1770108846377,8.6982464,2321.0,2320.2,1.81161476]
[1770108846579,7.7962464,2320.8,2320.1,12.72827815]
[1770108846767,7.7962464,2320.8,2319.9,1.07761169]
[1770108847155,7.7962464,2320.6,2319.9,12.72827815]
[1770108847460,1.07735401,2320.5,2319.9,12.72827815]
[1770108847663,8.87358752,2320.6,2319.7,13.80597499]
[1770108847983,8.87349147,2320.8,2319.9,13.80590955]
[1770108848484,8.87349147,2320.8,2320.3,0.001]
[1770108849486,1.07735401,2320.5,2320.0,0.001]
[1770108849658,7.7962464,2321.9,2320.8,16.53699857]
[1770108849986,19.84752996,2321.9,2320.8,12.72827815]
[1770108850383,12.05128356,2321.9,2320.8,12.72827815]
[1770108850591,12.05128356,2321.9,2320.8,14.30032727]
[1770108850761,1.20512836,2321.8,2320.9,1.43003273]
[1770108851073,1.20512836,2321.8,2320.9,3.00208185]
[1770108851472,0.903,2321.9,2321.0,1.07712193]
[1770108851674,0.903,2321.9,2321.1,12.72827815]
[1770108852680,1.07647261,2322.4,2321.1,12.72827815]
[1770108852883,1.70499423,2322.4,2321.3,12.72827815]
[1770108853405,13.75627779,2322.4,2321.2,1.38054001]
[1770108853556,13.75627779,2322.4,2321.0,13.80540008]
[1770108854782,13.75627779,2322.4,2321.0,14.85357327]
[1770108854990,13.75627779,2322.4,2321.0,13.80540008]
[1770108856956,13.75628396,2322.4,2321.0,13.80540008]
[1770108857181,13.12776234,2322.4,2321.2,12.72827815]
[1770108858365,13.12776234,2322.4,2321.3,1.07698272]
[1770108858891,10.71492521,2322.4,2321.1,3.03146267]
[1770108859073,12.05128356,2322.3,2321.2,1.07702374]
[1770108859276,0.02250189,2321.3,2321.2,1.07702374]
[1770108859488,0.02250189,2321.3,2321.1,1.07705292]
[1770108859670,0.02250189,2321.3,2321.1,1.07706905]
[1770108860299,0.02250189,2321.3,2321.2,1.07702912]
[1770108860800,0.02250189,2321.3,2321.0,1.07712193]
[1770108861002,0.02250189,2321.3,2321.1,1.81140054]
[1770108863370,0.02360189,2321.3,2321.1,1.81140054]
[1770108864799,0.0011,2321.3,2321.1,1.81140054]
[1770108865589,0.0011,2321.3,2321.1,2.88846082]
[1770108865798,7.50657987,2322.2,2321.1,15.0593256]
[1770108865995,1.07651896,2322.3,2321.3,12.17086478]
[1770108866194,13.65841523,2322.3,2321.3,12.17086478]
[1770108866900,13.65841523,2322.3,2321.4,1.07693633]
[1770108868205,16.88753919,2322.6,2321.5,12.17086478]
[1770108868410,12.58189627,2322.5,2321.5,12.17086478]
[1770108868592,12.58189627,2322.5,2321.6,1.32478011]
[1770108868897,12.58189627,2322.5,2321.3,1.0769624]
[1770108869075,12.58189627,2322.3,2321.3,13.24782718]
[1770108871572,12.58189627,2322.3,2321.3,1.0769624]
[1770108871573,12.58189627,2322.1,2321.3,1.0769624]
[1770108871774,14.37836154,2322.1,2321.3,0.73217449]
[1770108872015,14.37836154,2322.1,2321.0,1.07711103]
[1770108872301,14.37836154,2322.1,2320.7,12.17086478]
[1770108872302,12.58189627,2321.9,2320.9,1.077155]
[1770108872485,13.8400859,2321.8,2321.0,1.07710397]
[1770108872688,12.58189627,2321.8,2321.0,1.07710397]
[1770108873006,12.58189627,2321.8,2320.9,2.83283917]
[1770108873710,12.90718105,2323.4,2321.3,12.17086478]
[1770108873711,13.65822984,2322.7,2321.3,12.17086478]
[1770108873910,13.23266192,2322.6,2321.3,12.17086478]
[1770108875205,13.23266192,2322.6,2321.0,12.4541487]
[1770108875594,13.23266192,2322.6,2321.1,12.17086478]
[1770108875915,12.58189627,2322.4,2321.3,1.07698272]
[1770108876810,0.0011,2321.7,2321.3,1.07698272]
[1770108877109,0.0011,2321.7,2321.3,13.2478475]
[1770108882485,0.0011,2321.7,2321.3,1.07698272]
[1770108887320,12.58299627,2321.7,2321.0,0.28428392]
[1770108887524,12.58299627,2321.7,2321.0,0.001]
[1770108887525,12.58189627,2321.5,2321.0,0.001]
[1770108888323,12.58189627,2321.5,2320.8,0.001]
[1770108889393,12.58189627,2321.3,2320.8,0.001]
[1770108890505,2.33516961,2321.6,2320.8,0.001]
[1770108890706,11.91052742,2321.5,2320.8,0.001]
[1770108890910,11.91052742,2321.3,2320.8,0.001]
[1770108891623,1.07702912,2321.2,2320.8,0.001]
[1770108891919,11.91052742,2321.3,2320.8,0.001]
[1770108892226,2.50152895,2321.4,2321.3,0.001]
[1770108892405,2.50152895,2321.4,2320.8,0.001]
[1770108894202,1.86594291,2321.3,2320.8,0.001]
[1770108896620,2.94292745,2321.3,2320.8,0.001]
[1770108898635,14.79326126,2321.3,2320.8,0.001]
[1770108901733,0.0011,2321.7,2320.9,12.81632541]
[1770108902032,1.07790278,2321.7,2320.9,12.81632541]
[1770108902406,1.07790907,2321.7,2320.9,12.81632541]
[1770108902607,0.0011,2321.7,2321.0,1.07712193]
[1770108903122,11.85033381,2321.6,2320.8,1.0782064]
[1770108903328,19.66178575,2321.5,2320.9,1.38945318]
[1770108903638,19.66178575,2321.5,2320.8,0.001]
[1770108904931,20.73871602,2321.5,2321.0,0.001]
[1770108905231,1.97988335,2321.6,2321.0,0.001]
[1770108907045,11.85033381,2321.0,2320.0,0.44509055]
[1770108907220,19.66178575,2320.8,2320.0,0.44509055]
[1770108907429,7.81145194,2320.8,2320.0,1.52266686]
[1770108907819,7.81145194,2320.8,2320.0,0.44509055]
[1770108908109,19.66178575,2320.8,2320.0,0.44509055]
[1770108908312,2.05647857,2320.7,2320.0,0.44509055]
[1770108908761,2.05647857,2320.7,2320.0,1.52264182]
[1770108909040,3.13376104,2320.7,2320.0,1.52264182]
[1770108909239,3.13376104,2320.7,2320.0,0.44509055]
[1770108910467,11.85033381,2320.6,2320.0,0.44509055]
[1770108910621,12.9592815,2320.5,2319.6,13.89407155]
[1770108910959,11.85033381,2320.5,2319.7,1.07772459]
[1770108911240,12.92773425,2320.4,2319.6,1.07773935]
[1770108911541,14.98410169,2320.7,2319.6,13.89406476]
[1770108911715,11.85033381,2321.2,2319.6,13.89406476]
[1770108911914,11.85033381,2321.2,2320.0,12.81632541]
[1770108913329,11.85033381,2321.0,2320.0,1.07755502]
[1770108913531,11.85033381,2321.0,2319.8,1.07764363]
[1770108914220,11.85033381,2321.0,2319.9,1.07762381]
[1770108915347,1.07716833,2320.9,2319.7,4.31083642]
[1770108915547,11.85033381,2320.8,2319.8,1.82048874]
[1770108915746,12.75333381,2320.7,2319.8,1.82048874]
[1770108916048,12.75333381,2320.7,2319.5,0.1119715]
[1770108916236,11.85033381,2320.5,2319.2,1.07794955]
[1770108916544,11.85033381,2320.5,2319.2,1.07793383]
[1770108916746,11.85033381,2320.5,2319.1,13.89429774]
[1770108916927,11.85033381,2320.3,2319.2,1.8206467]
[1770108918124,12.92782712,2320.2,2319.2,15.7149208]
[1770108918322,2.2765879,2320.4,2319.2,15.7149208]
[1770108918530,14.12692171,2320.4,2319.2,15.7149208]
[1770108918748,14.12692171,2320.4,2319.4,12.81732541]
[1770108918953,1.84363865,2320.3,2319.5,1.28173254]
[1770108919957,1.0774028,2320.4,2319.5,14.09805795]
[1770108920151,0.903,2320.8,2319.7,12.81632541]
[1770108920152,1.07726117,2320.7,2319.7,12.81632541]
[1770108920362,13.91570815,2320.7,2319.6,1.07777202]
[1770108921153,13.91570815,2320.7,2319.6,13.04405877]
[1770108924045,13.91570815,2320.7,2319.5,5.59300319]
[1770108924046,13.91570815,2320.7,2319.5,1.28173254]
[1770108924356,12.83844698,2320.5,2319.4,1.07886166]
[1770108924856,12.83844698,2320.5,2319.4,0.001]
[1770108925156,12.83844698,2320.3,2319.4,0.001]
[1770108925454,14.23003172,2320.2,2319.4,0.001]
[1770108925659,12.83844698,2320.2,2319.4,0.001]
[1770108926236,12.83844698,2320.2,2319.2,2.8985691]
[1770108926237,12.83844698,2320.2,2318.9,1.07806801]
[1770108926442,12.87727523,2319.7,2318.1,12.4113773]
[1770108926662,12.87727523,2319.7,2318.4,1.07829142]
[1770108926663,12.83844698,2319.5,2318.4,1.07829142]
[1770108927046,12.83844698,2319.3,2318.3,4.31346155]
[1770108927968,1.07786496,2319.4,2318.3,16.2797483]
[1770108928156,13.91631194,2319.4,2318.3,4.31346155]
[1770108928327,15.20786424,2319.6,2318.4,12.67272439]
[1770108928531,13.91625389,2319.6,2318.4,12.67272439]
[1770108929177,13.91625389,2319.6,2318.5,1.07828337]
[1770108929368,13.91625389,2319.6,2318.4,1.07831817]
[1770108929673,12.83844698,2319.4,2318.4,0.53919657]
[1770108929889,13.74144698,2319.4,2318.2,1.07838803]
[1770108930051,13.74144698,2319.4,2318.1,0.44509055]
[1770108930380,12.83844698,2319.0,2318.1,0.44509055]
[1770108931094,12.83844698,2318.8,2318.1,0.44509055]